fUST/lending_fUST_20260413
["ID","MTS","AMOUNT","RATE_DAILY","PERIOD"]
[420356677,1776024648968,-167.10563018,0.00017217,2]
[420356680,1776024648989,-500.0,0.00017217,2]
[420356682,1776024648999,-502.18675053,0.00017217,2]
[420356683,1776024649012,-501.41011311,0.00017222,2]
[420356685,1776024649035,-511.69108934,0.00017222,2]
[420356687,1776024649045,-502.22924655,0.00017222,2]
[420356689,1776024649056,-174.05417988,0.00017235,23]
[420356691,1776024649080,-1143.5653,0.0001726,2]
[420356693,1776024649096,-884.6594,0.0001726,2]
[420356695,1776024649110,-500.0,0.0001726,2]
[420356697,1776024649149,-500.0,0.0001726,2]
[420356698,1776024649164,-500.0,0.0001726,2]
[420356700,1776024649214,-1074.62,0.0001726,2]
[420356702,1776024649277,-500.0,0.0001726,2]
[420356705,1776024649331,-500.0,0.0001726,2]
[420356706,1776024649372,-4145.55,0.0001726,2]
[420356708,1776024649469,-500.0,0.0001726,2]
[420356709,1776024649504,-151.0,0.0001726,2]
[420356710,1776024649515,-500.0,0.0001726,2]
[420356711,1776024649537,-500.0,0.0001726,2]
[420356712,1776024649551,-500.0,0.0001726,2]
[420356713,1776024649563,-500.0,0.0001726,2]
[420356714,1776024649586,-3504.24,0.0001726,2]
[420356715,1776024649601,-2094.6,0.0001726,2]
[420356716,1776024649617,-508.75325687,0.0001726,2]
[420356717,1776024649638,-500.0,0.0001726,2]
[420356718,1776024649647,-706.72,0.0001726,2]
[420356719,1776024649664,-1534.89,0.0001726,2]
[420356720,1776024649676,-5178.65,0.0001726,2]
[420356721,1776024649686,-500.0,0.0001726,2]
[420356722,1776024649695,-500.0,0.0001726,2]
[420356723,1776024649712,-500.0,0.0001726,2]
[420356724,1776024649720,-1039.9,0.0001726,2]
[420356725,1776024649728,-500.0,0.0001726,2]
[420356726,1776024649739,-500.0,0.0001726,2]
[420356727,1776024649756,-500.0,0.0001726,2]
[420356728,1776024649765,-788.0,0.0001726,2]
[420356729,1776024649773,-500.0,0.0001726,2]
[420356730,1776024649782,-555.01,0.0001726,2]
[420356731,1776024649790,-834.37,0.0001726,2]
[420356732,1776024649805,-1018.19,0.0001726,2]
[420356733,1776024649813,-649.44,0.0001726,2]
[420356734,1776024649822,-500.0,0.0001726,2]
[420356735,1776024649830,-4123.41,0.0001726,2]
[420356736,1776024649839,-787.37,0.0001726,2]
[420356737,1776024649851,-500.0,0.0001726,2]
[420356738,1776024649861,-639.06,0.0001726,2]
[420356739,1776024649870,-500.0,0.0001726,2]
[420356740,1776024649878,-2861.98,0.0001726,2]
[420356741,1776024649888,-4922.21,0.0001726,2]
[420356742,1776024649896,-1544.16,0.0001726,2]
[420356743,1776024649906,-9861.02,0.0001726,2]
[420356744,1776024649916,-500.0,0.0001726,2]
[420356745,1776024649927,-4884.9,0.0001726,2]
[420356746,1776024649940,-6398.84,0.0001726,2]
[420356747,1776024649952,-500.0,0.0001726,2]
[420356748,1776024649962,-500.0,0.0001726,2]
[420356749,1776024649976,-4703.6,0.0001726,2]
[420356750,1776024649985,-746.1,0.0001726,2]
[420356751,1776024649999,-883.42,0.0001726,2]
[420356752,1776024650008,-526.85,0.0001726,2]
[420356753,1776024650026,-3038.71,0.0001726,2]
[420356754,1776024650040,-768.12,0.0001726,2]
[420356755,1776024650054,-566.24,0.0001726,2]
[420356756,1776024650068,-1080.88,0.0001726,2]
[420356757,1776024650083,-500.0,0.0001726,2]
[420356758,1776024650096,-625.57,0.0001726,2]
[420356759,1776024650109,-4262.84,0.0001726,2]
[420356760,1776024650119,-500.0,0.0001726,2]
[420356761,1776024650136,-636.13,0.0001726,2]
[420356762,1776024650145,-4288.94,0.0001726,2]
[420356763,1776024650157,-500.0,0.0001726,2]
[420356764,1776024650168,-500.0,0.0001726,2]
[420356765,1776024650180,-767.06,0.0001726,2]
[420356766,1776024650191,-1091.38,0.0001726,2]
[420356767,1776024650200,-500.0,0.0001726,2]
[420356768,1776024650210,-500.0,0.0001726,2]
[420356769,1776024650222,-319.46873874,0.0001726,2]
[420356770,1776024650235,-1109.9559994,0.00017314,2]
[420356771,1776024650245,-800.0,0.00017335,2]
[420356772,1776024650255,-800.0,0.00017352,2]
[420356773,1776024650265,-1000.0,0.00017354,2]
[420356774,1776024650278,-820.0,0.00017362,2]
[420356775,1776024650288,-800.0,0.00017397,2]
[420356776,1776024650297,-820.0,0.000174,2]
[420356777,1776024650309,-800.0,0.00017423,2]
[420356778,1776024650319,-637.89939983,0.00017426,2]
[420356779,1776024650330,-800.0,0.00017428,2]
[420356780,1776024650341,-800.0,0.00017429,2]
[420356781,1776024650350,-160.0,0.00017452,7]
[420356782,1776024650362,-6160.308633,0.00017452,7]
[420356783,1776024650374,-12160.617267,0.00017452,7]
[420356784,1776024650389,-800.0,0.00017474,2]
[420356785,1776024650402,-250.0,0.000175,2]
[420356786,1776024650414,-250.0,0.000175,2]
[420356787,1776024650427,-250.0,0.000175,2]
[420356788,1776024650448,-250.0,0.000175,2]
[420356789,1776024650463,-250.0,0.000175,2]
[420356790,1776024650490,-250.0,0.000175,2]
[420356791,1776024650504,-250.0,0.000175,2]
[420356792,1776024650517,-250.0,0.000175,2]
[420356793,1776024650580,-249.4,0.000175,2]
[420356794,1776024650619,-174.05417988,0.00017511,25]
[420356795,1776024650657,-26138.34241886,0.00017523,3]
[420356796,1776024650883,-11861.65758114,0.00017523,3]
[420356797,1776024650899,-38000.0,0.00017524,3]
[420356798,1776024650927,-820.0,0.00017529,2]
[420356799,1776024650938,-38000.0,0.00017532,3]
[420356800,1776024650954,-38000.0,0.00017532,3]
[420356801,1776024650981,-38000.0,0.00017532,3]
[420356802,1776024650995,-38000.0,0.00017533,3]
[420356803,1776024651012,-38000.0,0.00017533,3]
[420356804,1776024651025,-38000.0,0.00017533,3]
[420356805,1776024651039,-38000.0,0.00017533,3]
[420356806,1776024651048,-1143.5653,0.00017534,2]
[420356807,1776024651069,-884.6594,0.00017534,2]
[420356808,1776024651078,-500.0,0.00017534,2]
[420356809,1776024651090,-500.0,0.00017534,2]
[420356810,1776024651099,-500.0,0.00017534,2]
[420356811,1776024651110,-1074.62,0.00017534,2]
[420356812,1776024651122,-500.0,0.00017534,2]
[420356813,1776024651134,-500.0,0.00017534,2]
[420356814,1776024651143,-4145.55,0.00017534,2]
[420356815,1776024651153,-500.0,0.00017534,2]
[420356816,1776024651165,-151.0,0.00017534,2]
[420356817,1776024651177,-500.0,0.00017534,2]
[420356818,1776024651186,-500.0,0.00017534,2]
[420356819,1776024651200,-500.0,0.00017534,2]
[420356820,1776024651209,-500.0,0.00017534,2]
[420356821,1776024651222,-3504.24,0.00017534,2]
[420356822,1776024651231,-2094.6,0.00017534,2]
[420356823,1776024651242,-207.68769471,0.00017534,2]
[420356824,1776024651251,-706.72,0.00017534,2]
[420356825,1776024651260,-1534.89,0.00017534,2]
[420356826,1776024651269,-5178.65,0.00017534,2]
[420356827,1776024651278,-500.0,0.00017534,2]
[420356828,1776024651290,-500.0,0.00017534,2]
[420356829,1776024651300,-500.0,0.00017534,2]
[420356830,1776024651309,-1039.9,0.00017534,2]
[420356831,1776024651459,-500.0,0.00017534,2]
[420356832,1776024651469,-500.0,0.00017534,2]
[420356833,1776024651479,-500.0,0.00017534,2]
[420356834,1776024651489,-788.0,0.00017534,2]
[420356835,1776024651499,-500.0,0.00017534,2]
[420356836,1776024651510,-555.01,0.00017534,2]
[420356837,1776024651521,-834.37,0.00017534,2]
[420356838,1776024651530,-1018.19,0.00017534,2]
[420356839,1776024651543,-649.44,0.00017534,2]
[420356840,1776024651553,-500.0,0.00017534,2]
[420356841,1776024651564,-4123.41,0.00017534,2]
[420356842,1776024651573,-787.37,0.00017534,2]
[420356843,1776024651586,-500.0,0.00017534,2]
[420356844,1776024651596,-639.06,0.00017534,2]
[420356845,1776024651606,-500.0,0.00017534,2]
[420356846,1776024651616,-2861.98,0.00017534,2]
[420356847,1776024651627,-4922.21,0.00017534,2]
[420356848,1776024651637,-1544.16,0.00017534,2]
[420356849,1776024651647,-9861.02,0.00017534,2]
[420356850,1776024651658,-500.0,0.00017534,2]
[420356851,1776024651671,-4884.9,0.00017534,2]
[420356852,1776024651681,-6398.84,0.00017534,2]
[420356853,1776024651694,-500.0,0.00017534,2]
[420356854,1776024651705,-500.0,0.00017534,2]
[420356855,1776024651718,-4703.6,0.00017534,2]
[420356856,1776024651731,-746.1,0.00017534,2]
[420356857,1776024651743,-883.42,0.00017534,2]
[420356858,1776024651752,-526.85,0.00017534,2]
[420356859,1776024651767,-3038.71,0.00017534,2]
[420356860,1776024651783,-768.12,0.00017534,2]
[420356861,1776024651793,-566.24,0.00017534,2]
[420356862,1776024651807,-1080.88,0.00017534,2]
[420356863,1776024651824,-500.0,0.00017534,2]
[420356864,1776024651834,-625.57,0.00017534,2]
[420356865,1776024651847,-4262.84,0.00017534,2]
[420356866,1776024651861,-500.0,0.00017534,2]
[420356867,1776024651875,-636.13,0.00017534,2]
[420356868,1776024651888,-4288.94,0.00017534,2]
[420356869,1776024651897,-500.0,0.00017534,2]
[420356870,1776024651913,-500.0,0.00017534,2]
[420356871,1776024651925,-767.06,0.00017534,2]
[420356872,1776024651939,-1091.38,0.00017534,2]
[420356873,1776024651950,-500.0,0.00017534,2]
[420356874,1776024651967,-500.0,0.00017534,2]
[420356875,1776024651982,-1528.0,0.00017534,2]
[420356876,1776024651999,-160.0,0.00017542,7]
[420356877,1776024652010,-5940.619151,0.00017542,7]
[420356878,1776024652039,-11721.238303,0.00017542,7]
[420356879,1776024652055,-1385.948024,0.0001762,2]
[420356880,1776024652083,-166.16,0.00017664,2]
[420356881,1776024652110,-1801.71341142,0.00017678,4]
[420356882,1776024652148,-820.0,0.00017683,2]
[420356883,1776024652211,-151.0,0.000177,2]
[420356884,1776024652249,-229.161,0.00017707,7]
[420356885,1776024652274,-621.78829552,0.00017732,2]
[420356886,1776024652296,-2487.15318209,0.00017732,2]
[420356887,1776024652309,-247.6646599,0.00017749,2]
[420356888,1776024652326,-277.07,0.0001776,7]
[420356889,1776024652349,-905.88648087,0.00017765,2]
[420356890,1776024652367,-1000.0,0.00017765,2]
[420356891,1776024652390,-1002.28035322,0.00017765,2]
[420356892,1776024652401,-1000.95735459,0.00017765,2]
[420356893,1776024652414,-1000.0,0.00017765,2]
[420356894,1776024652439,-1000.0,0.00017765,2]
[420356895,1776024652451,-1611.91298641,0.00017769,2]
[420356896,1776024652477,-280.31323615,0.00017785,60]
[420356897,1776024652486,-174.05417988,0.00017787,28]
[420356898,1776024652512,-55140.70156457,0.000178,2]
[420356899,1776024652528,-151.0,0.00017804,2]
[420356900,1776024652549,-1143.5653,0.00017808,2]
[420356901,1776024652569,-884.6594,0.00017808,2]
[420356902,1776024652593,-500.0,0.00017808,2]
[420356903,1776024652604,-500.0,0.00017808,2]
[420356904,1776024652614,-500.0,0.00017808,2]
[420356905,1776024652644,-1074.62,0.00017808,2]
[420356906,1776024652657,-500.0,0.00017808,2]
[420356907,1776024652683,-521.18684148,0.00017808,2]
[420356908,1776024652694,-4145.55,0.00017808,2]
[420356909,1776024652708,-500.0,0.00017808,2]
[420356910,1776024652730,-151.0,0.00017808,2]
[420356911,1776024652743,-204.07655956,0.00017808,2]
[420356912,1776024652768,-500.0,0.00017808,2]
[420356913,1776024652779,-500.0,0.00017808,2]
[420356915,1776024652810,-500.0,0.00017808,2]
[420356917,1776024652824,-3504.24,0.00017808,2]
[420356918,1776024652842,-2094.6,0.00017808,2]
[420356919,1776024652858,-706.72,0.00017808,2]
[420356920,1776024652875,-1534.89,0.00017808,2]
[420356921,1776024652891,-5178.65,0.00017808,2]
[420356922,1776024652902,-500.0,0.00017808,2]
[420356923,1776024652920,-500.0,0.00017808,2]
[420356924,1776024652934,-500.0,0.00017808,2]
[420356925,1776024652946,-1039.9,0.00017808,2]
[420356926,1776024652960,-500.0,0.00017808,2]
[420356927,1776024652973,-500.0,0.00017808,2]
[420356928,1776024652987,-500.0,0.00017808,2]
[420356929,1776024653000,-788.0,0.00017808,2]
[420356930,1776024653010,-500.0,0.00017808,2]
[420356931,1776024653023,-555.01,0.00017808,2]
[420356932,1776024653032,-834.37,0.00017808,2]
[420356933,1776024653043,-1018.19,0.00017808,2]
[420356934,1776024653053,-649.44,0.00017808,2]
[420356935,1776024653066,-500.0,0.00017808,2]
[420356936,1776024653076,-4123.41,0.00017808,2]
[420356937,1776024653086,-787.37,0.00017808,2]
[420356938,1776024653096,-500.0,0.00017808,2]
[420356939,1776024653105,-639.06,0.00017808,2]
[420356940,1776024653116,-500.0,0.00017808,2]
[420356941,1776024653126,-2861.98,0.00017808,2]
[420356942,1776024653136,-4922.21,0.00017808,2]
[420356943,1776024653145,-1544.16,0.00017808,2]
[420356944,1776024653155,-9861.02,0.00017808,2]
[420356945,1776024653165,-500.0,0.00017808,2]
[420356946,1776024653175,-4884.9,0.00017808,2]
[420356947,1776024653185,-6398.84,0.00017808,2]
[420356948,1776024653196,-500.0,0.00017808,2]
[420356949,1776024653206,-500.0,0.00017808,2]
[420356950,1776024653217,-4703.6,0.00017808,2]
[420356951,1776024653226,-746.1,0.00017808,2]
[420356952,1776024653237,-883.42,0.00017808,2]
[420356953,1776024653247,-526.85,0.00017808,2]
[420356954,1776024653259,-3038.71,0.00017808,2]
[420356955,1776024653269,-768.12,0.00017808,2]
[420356956,1776024653281,-566.24,0.00017808,2]
[420356957,1776024653291,-1080.88,0.00017808,2]
[420356958,1776024653303,-500.0,0.00017808,2]
[420356959,1776024653317,-625.57,0.00017808,2]
[420356960,1776024653326,-4262.84,0.00017808,2]
[420356961,1776024653338,-500.0,0.00017808,2]
[420356962,1776024653358,-636.13,0.00017808,2]
[420356963,1776024653370,-4288.94,0.00017808,2]
[420356964,1776024653379,-500.0,0.00017808,2]
[420356965,1776024653399,-500.0,0.00017808,2]
[420356966,1776024653409,-767.06,0.00017808,2]
[420356967,1776024653419,-1091.38,0.00017808,2]
[420356969,1776024653431,-500.0,0.00017808,2]
[420356971,1776024653451,-500.0,0.00017808,2]
[420356972,1776024653460,-325.1311657,0.00017844,2]
[420356973,1776024653486,-525.12411808,0.00017902,2]
[420356974,1776024653498,-820.0,0.00017985,2]
[420356975,1776024653512,-214.0,0.00017992,2]
[420356976,1776024653541,-214.0,0.00017992,2]
[420356977,1776024653558,-174.05417988,0.00018062,30]
[420356978,1776024653583,-160.0,0.00018063,3]
[420356979,1776024653601,-162.73910115,0.00018063,5]
[420356980,1776024653616,-151.0,0.00018082,2]
[420356981,1776024653632,-1143.5653,0.00018082,2]
[420356982,1776024653657,-884.6594,0.00018082,2]
[420356983,1776024653676,-500.0,0.00018082,2]
[420356984,1776024653697,-500.0,0.00018082,2]
[420356986,1776024653710,-500.0,0.00018082,2]
[420356988,1776024653737,-1074.62,0.00018082,2]
[420356990,1776024653746,-477.29270105,0.00018082,2]
[420356992,1776024653767,-4145.55,0.00018082,2]
[420356994,1776024653786,-500.0,0.00018082,2]
[420356996,1776024653807,-500.0,0.00018082,2]
[420356997,1776024653830,-500.0,0.00018082,2]
[420356999,1776024653848,-500.0,0.00018082,2]
[420357001,1776024653891,-3504.24,0.00018082,2]
[420357003,1776024653936,-2094.6,0.00018082,2]
[420357004,1776024653993,-706.72,0.00018082,2]
[420357006,1776024654044,-1534.89,0.00018082,2]
[420357008,1776024654085,-5178.65,0.00018082,2]
[420357010,1776024654126,-500.0,0.00018082,2]
[420357011,1776024654154,-500.0,0.00018082,2]
[420357012,1776024654177,-500.0,0.00018082,2]
[420357013,1776024654194,-1039.9,0.00018082,2]
[420357014,1776024654213,-500.0,0.00018082,2]
[420357015,1776024654226,-500.0,0.00018082,2]
[420357016,1776024654245,-500.0,0.00018082,2]
[420357017,1776024654264,-788.0,0.00018082,2]
[420357018,1776024654278,-500.0,0.00018082,2]
[420357019,1776024654309,-555.01,0.00018082,2]
[420357020,1776024654335,-834.37,0.00018082,2]
[420357021,1776024654360,-1018.19,0.00018082,2]
[420357022,1776024654387,-649.44,0.00018082,2]
[420357023,1776024654411,-500.0,0.00018082,2]
[420357024,1776024654431,-4123.41,0.00018082,2]
[420357025,1776024654466,-787.37,0.00018082,2]
[420357026,1776024654478,-500.0,0.00018082,2]
[420357027,1776024654506,-639.06,0.00018082,2]
[420357028,1776024654522,-500.0,0.00018082,2]
[420357029,1776024654542,-2861.98,0.00018082,2]
[420357030,1776024654556,-4922.21,0.00018082,2]
[420357031,1776024654567,-1544.16,0.00018082,2]
[420357032,1776024654581,-9861.02,0.00018082,2]
[420357033,1776024654592,-500.0,0.00018082,2]
[420357034,1776024654606,-4884.9,0.00018082,2]
[420357035,1776024654617,-6398.84,0.00018082,2]
[420357036,1776024654632,-500.0,0.00018082,2]
[420357037,1776024654644,-500.0,0.00018082,2]
[420357038,1776024654657,-4703.6,0.00018082,2]
[420357039,1776024654672,-746.1,0.00018082,2]
[420357040,1776024654684,-883.42,0.00018082,2]
[420357041,1776024654695,-526.85,0.00018082,2]
[420357042,1776024654707,-3038.71,0.00018082,2]
[420357043,1776024654720,-768.12,0.00018082,2]
[420357044,1776024654732,-566.24,0.00018082,2]
[420357045,1776024654747,-1080.88,0.00018082,2]
[420357046,1776024654758,-500.0,0.00018082,2]
[420357047,1776024654767,-625.57,0.00018082,2]
[420357048,1776024654776,-4262.84,0.00018082,2]
[420357049,1776024654787,-335.29395991,0.00018082,2]
[420357050,1776024654797,-636.13,0.00018082,2]
[420357051,1776024654807,-4288.94,0.00018082,2]
[420357052,1776024654817,-500.0,0.00018082,2]
[420357053,1776024654827,-500.0,0.00018082,2]
[420357054,1776024654839,-767.06,0.00018082,2]
[420357055,1776024654850,-1091.38,0.00018082,2]
[420357056,1776024654860,-500.0,0.00018082,2]
[420357057,1776024654870,-500.0,0.00018082,2]
[420357058,1776024654883,-1528.0,0.00018082,2]
[420357059,1776024654895,-400.67,0.000181,2]
[420357060,1776024654907,-5099.57135503,0.000181,2]
[420357061,1776024654919,-5099.57135502,0.000181,2]
[420357062,1776024654932,-5099.57135502,0.000181,2]
[420357063,1776024654942,-5099.57135502,0.000181,2]
[420357064,1776024654959,-438.0,0.00018148,2]
[420357065,1776024654973,-1318.0,0.00018148,2]
[420357066,1776024654983,-1385.948024,0.00018254,2]
[420357067,1776024655009,-156.0,0.00018275,2]
[420357068,1776024655020,-156.3726324,0.00018278,2]
[420357069,1776024655048,-644.79446246,0.0001828,2]
[420357070,1776024655063,-2579.17784983,0.0001828,2]
[420357071,1776024655093,-10369.3071092,0.00018283,2]
[420357072,1776024655106,-1500.0,0.00018313,2]
[420357073,1776024655137,-169.59477477,0.00018313,2]
[420357074,1776024655150,-1500.0,0.00018313,2]
[420357075,1776024655186,-8400.420864,0.00018325,7]
[420357076,1776024655200,-174.05417988,0.00018338,30]
[420357077,1776024655211,-151.0,0.00018356,2]
[420357078,1776024655246,-996.8617,0.00018356,2]
[420357079,1776024655258,-1031.363,0.00018356,2]
[420357080,1776024655300,-500.0,0.00018356,2]
[420357081,1776024655347,-500.0,0.00018356,2]
[420357082,1776024655362,-500.0,0.00018356,2]
[420357083,1776024655400,-1074.62,0.00018356,2]
[420357084,1776024655437,-4145.55,0.00018356,2]
[420357085,1776024655470,-500.0,0.00018356,2]
[420357086,1776024655500,-500.0,0.00018356,2]
[420357087,1776024655539,-500.0,0.00018356,2]
[420357088,1776024655552,-500.0,0.00018356,2]
[420357089,1776024655584,-3504.24,0.00018356,2]
[420357090,1776024655595,-2094.6,0.00018356,2]
[420357091,1776024655615,-706.72,0.00018356,2]
[420357092,1776024655630,-1534.89,0.00018356,2]
[420357093,1776024655643,-5178.65,0.00018356,2]
[420357094,1776024655658,-500.0,0.00018356,2]
[420357095,1776024655672,-500.0,0.00018356,2]
[420357096,1776024655685,-500.0,0.00018356,2]
[420357097,1776024655696,-1039.9,0.00018356,2]
[420357098,1776024655715,-500.0,0.00018356,2]
[420357099,1776024655727,-500.0,0.00018356,2]
[420357100,1776024655738,-500.0,0.00018356,2]
[420357101,1776024655751,-788.0,0.00018356,2]
[420357102,1776024655761,-500.0,0.00018356,2]
[420357103,1776024655773,-555.01,0.00018356,2]
[420357104,1776024655784,-834.37,0.00018356,2]
[420357105,1776024655797,-1018.19,0.00018356,2]
[420357106,1776024655806,-649.44,0.00018356,2]
[420357107,1776024655818,-500.0,0.00018356,2]
[420357108,1776024655827,-4123.41,0.00018356,2]
[420357109,1776024655838,-787.37,0.00018356,2]
[420357110,1776024655848,-500.0,0.00018356,2]
[420357111,1776024655858,-639.06,0.00018356,2]
[420357112,1776024655867,-500.0,0.00018356,2]
[420357113,1776024655879,-2861.98,0.00018356,2]
[420357114,1776024655888,-4922.21,0.00018356,2]
[420357115,1776024655898,-1544.16,0.00018356,2]
[420357116,1776024656034,-9861.02,0.00018356,2]
[420357117,1776024656043,-500.0,0.00018356,2]
[420357118,1776024656052,-4884.9,0.00018356,2]
[420357119,1776024656061,-6398.84,0.00018356,2]
[420357120,1776024656072,-500.0,0.00018356,2]
[420357121,1776024656082,-500.0,0.00018356,2]
[420357122,1776024656092,-4703.6,0.00018356,2]
[420357123,1776024656102,-746.1,0.00018356,2]
[420357124,1776024656112,-883.42,0.00018356,2]
[420357125,1776024656122,-526.85,0.00018356,2]
[420357126,1776024656131,-3038.71,0.00018356,2]
[420357127,1776024656140,-768.12,0.00018356,2]
[420357128,1776024656150,-566.24,0.00018356,2]
[420357129,1776024656161,-1080.88,0.00018356,2]
[420357130,1776024656170,-500.0,0.00018356,2]
[420357131,1776024656179,-625.57,0.00018356,2]
[420357132,1776024656188,-4262.84,0.00018356,2]
[420357133,1776024656198,-636.13,0.00018356,2]
[420357134,1776024656208,-4288.94,0.00018356,2]
[420357135,1776024656220,-500.0,0.00018356,2]
[420357136,1776024656231,-500.0,0.00018356,2]
[420357137,1776024656244,-767.06,0.00018356,2]
[420357138,1776024656256,-1091.38,0.00018356,2]
[420357139,1776024656270,-500.0,0.00018356,2]
[420357140,1776024656285,-500.0,0.00018356,2]
[420357141,1776024656296,-3992.25121375,0.00018379,2]
[420357142,1776024656311,-604.64411141,0.00018383,2]
[420357143,1776024656326,-308.88720893,0.00018383,2]
[420357144,1776024656339,-864.0,0.00018398,2]
[420357145,1776024656354,-1040.0,0.000184,4]
[420357146,1776024656370,-8100.844297,0.00018419,7]
[420357147,1776024656383,-155.0,0.00018479,2]
[420357148,1776024656399,-1611.91298641,0.00018579,2]
[420357149,1776024656416,-174.05417988,0.00018614,30]
[420357150,1776024656432,-6533.32161977,0.00018615,2]
[420357151,1776024656445,-151.0,0.0001863,2]
[420357152,1776024656459,-1143.5653,0.0001863,2]
[420357153,1776024656474,-884.6594,0.0001863,2]
[420357154,1776024656492,-500.0,0.0001863,2]
[420357155,1776024656508,-500.0,0.0001863,2]
[420357156,1776024656519,-647.62747456,0.0001863,2]
[420357157,1776024656538,-1074.62,0.0001863,2]
[420357158,1776024656555,-4145.55,0.0001863,2]
[420357159,1776024656567,-327.92301493,0.0001863,2]
[420357160,1776024656579,-500.0,0.0001863,2]
[420357161,1776024656595,-613.10653365,0.0001863,2]
[420357162,1776024656607,-500.0,0.0001863,2]
[420357163,1776024656620,-3504.24,0.0001863,2]
[420357164,1776024656641,-2094.6,0.0001863,2]
[420357165,1776024656655,-706.72,0.0001863,2]
[420357166,1776024656669,-1534.89,0.0001863,2]
[420357167,1776024656679,-5178.65,0.0001863,2]
[420357168,1776024656691,-500.0,0.0001863,2]
[420357169,1776024656703,-500.0,0.0001863,2]
[420357170,1776024656720,-500.0,0.0001863,2]
[420357171,1776024656729,-1039.9,0.0001863,2]
[420357172,1776024656745,-500.0,0.0001863,2]
[420357173,1776024656763,-500.0,0.0001863,2]
[420357174,1776024656772,-500.0,0.0001863,2]
[420357175,1776024656783,-788.0,0.0001863,2]
[420357176,1776024656792,-500.0,0.0001863,2]
[420357177,1776024656809,-555.01,0.0001863,2]
[420357178,1776024656819,-834.37,0.0001863,2]
[420357179,1776024656829,-1018.19,0.0001863,2]
[420357180,1776024656842,-649.44,0.0001863,2]
[420357181,1776024656852,-500.0,0.0001863,2]
[420357182,1776024656861,-4123.41,0.0001863,2]
[420357183,1776024656876,-787.37,0.0001863,2]
[420357184,1776024656887,-500.0,0.0001863,2]
[420357185,1776024656897,-639.06,0.0001863,2]
[420357186,1776024656908,-500.0,0.0001863,2]
[420357187,1776024656923,-2861.98,0.0001863,2]
[420357188,1776024656935,-4922.21,0.0001863,2]
[420357189,1776024656950,-1307.45787088,0.0001863,2]
[420357190,1776024657581,-978.13732109,0.00013562,2]
[420357191,1776024657598,-1782.89478354,0.00013562,2]
[420357192,1776024657620,-622.06039237,0.00013562,2]
[420357193,1776024657633,-635.53097656,0.00013562,2]
[420357194,1776024657659,-981.37652644,0.00013562,2]
[420357195,1776024657669,-942.0,0.00016438,2]
[420357196,1776024657680,-1201.941412,0.000185,2]
[420357197,1776024657693,-236.70212912,0.0001863,2]
[420357198,1776024657703,-4245.03267279,0.0001863,2]
[420357199,1776024657990,-5615.98732721,0.0001863,2]
[420357200,1776024657999,-500.0,0.0001863,2]
[420357201,1776024658011,-4497.07113543,0.0001863,2]
[420357202,1776024658023,-387.82886457,0.0001863,2]
[420357203,1776024658032,-6398.84,0.0001863,2]
[420357204,1776024658045,-500.0,0.0001863,2]
[420357205,1776024658055,-500.0,0.0001863,2]
[420357206,1776024658064,-4703.6,0.0001863,2]
[420357207,1776024658073,-746.1,0.0001863,2]